[Event "*** Titled Tuesday 3|2 Blitz"]
[Site "Chess.com"]
[Date "2015.12.01"]
[Round "4"]
[White "GianmarcoVaR"]
[Black "tigra"]
[Result "0-1"]
[WhiteElo "2064"]
[BlackElo "2071"]
[TimeControl "180+2"]
[EndTime "11:52:31 PST"]
[Termination "tigra won on time"]

1. d3 {[%clk 0:02:57.3]} 1... e5 {[%clk 0:03:00.6]} 2. g3 {[%clk 0:02:58.5]}
2... d5 {[%clk 0:03:01.9]} 3. Bg2 {[%clk 0:03:00.1]} 3... Nc6 {[%clk 0:03:03.3]}
4. Nf3 {[%clk 0:02:59.2]} 4... Nf6 {[%clk 0:03:01.2]} 5. O-O {[%clk 0:02:59.1]}
5... Be7 {[%clk 0:03:01.7]} 6. c4 {[%clk 0:02:59.6]} 6... dxc4 {[%clk
0:03:01.9]} 7. dxc4 {[%clk 0:02:59.9]} 7... Qxd1 {[%clk 0:03:01.3]} 8. Rxd1
{[%clk 0:02:59.7]} 8... Be6 {[%clk 0:02:47.2]} 9. b3 {[%clk 0:02:53.9]} 9... h6
{[%clk 0:02:47.5]} 10. Bb2 {[%clk 0:02:49.7]} 10... e4 {[%clk 0:02:40.8]} 11.
Ne5 {[%clk 0:02:49.4]} 11... Nxe5 {[%clk 0:02:35.9]} 12. Bxe5 {[%clk 0:02:51.3]}
12... e3 {[%clk 0:02:24.4]} 13. f4 {[%clk 0:02:38]} 13... c6 {[%clk 0:02:25.1]}
14. Nc3 {[%clk 0:02:34]} 14... O-O {[%clk 0:02:10.2]} 15. Bf3 {[%clk 0:02:24.6]}
15... Rfe8 {[%clk 0:02:08]} 16. Kg2 {[%clk 0:02:14]} 16... g5 {[%clk 0:01:59]}
17. h3 {[%clk 0:02:08.5]} 17... Nd7 {[%clk 0:01:31.7]} 18. Bd6 {[%clk
0:01:26.9]} 18... Bxd6 {[%clk 0:01:27.8]} 19. Rxd6 {[%clk 0:01:27.7]} 19... gxf4
{[%clk 0:01:29.1]} 20. gxf4 {[%clk 0:01:28.3]} 20... Kf8 {[%clk 0:01:20.2]} 21.
Ne4 {[%clk 0:01:26]} 21... Ke7 {[%clk 0:01:13.3]} 22. Rad1 {[%clk 0:01:24.8]}
22... Rg8+ {[%clk 0:01:13.9]} 23. Kh2 {[%clk 0:01:13]} 23... a5 {[%clk
0:00:54.9]} 24. R6d3 {[%clk 0:00:53.6]} 24... f5 {[%clk 0:00:49.9]} 25. Ng3
{[%clk 0:00:46.5]} 25... Rgf8 {[%clk 0:00:49.1]} 26. Rxe3 {[%clk 0:00:46]} 26...
Nc5 {[%clk 0:00:43.7]} 27. Re5 {[%clk 0:00:36.3]} 27... Nd7 {[%clk 0:00:44.3]}
28. Re3 {[%clk 0:00:37.5]} 28... Nc5 {[%clk 0:00:46]} 29. Rc3 {[%clk 0:00:34.1]}
29... Rfd8 {[%clk 0:00:43.4]} 30. Rcc1 {[%clk 0:00:33]} 30... Na6 {[%clk
0:00:42.3]} 31. e4 {[%clk 0:00:31.9]} 31... fxe4 {[%clk 0:00:41.4]} 32. Bxe4
{[%clk 0:00:33.2]} 32... Nb4 {[%clk 0:00:42.1]} 33. Bb1 {[%clk 0:00:30.2]} 33...
Kf8 {[%clk 0:00:39.5]} 34. f5 {[%clk 0:00:28.5]} 34... Bf7 {[%clk 0:00:40.2]}
35. Ne4 {[%clk 0:00:28.7]} 35... Bh5 {[%clk 0:00:39.5]} 36. Rg1 {[%clk
0:00:25.1]} 36... Rd4 {[%clk 0:00:36.6]} 37. f6 {[%clk 0:00:17.9]} 37... Re8
{[%clk 0:00:35.5]} 38. Rce1 {[%clk 0:00:13.1]} 38... Re6 {[%clk 0:00:28.1]} 39.
Nc5 {[%clk 0:00:06.1]} 39... Rd2+ {[%clk 0:00:27.9]} 40. Kg3 {[%clk 0:00:06.6]}
40... Rxf6 {[%clk 0:00:26.1]} 41. Ne4 {[%clk 0:00:05.9]} 41... Rf3+ {[%clk
0:00:09.3]} 42. Kh4 {[%clk 0:00:07.1]} 42... Rh2 {[%clk 0:00:09.6]} 43. Rg3
{[%clk 0:00:07.2]} 43... Rxg3 {[%clk 0:00:09.1]} 44. Nxg3 {[%clk 0:00:05.6]}
44... Bf7 {[%clk 0:00:09]} 45. Rf1 {[%clk 0:00:06]} 45... Ke8 {[%clk 0:00:08.9]}
46. Nf5 {[%clk 0:00:06.9]} 46... Be6 {[%clk 0:00:10]} 47. Ng7+ {[%clk 0:00:08]}
47... Kd7 {[%clk 0:00:11.3]} 48. Rd1+ {[%clk 0:00:08.4]} 48... Ke7 {[%clk
0:00:12.5]} 49. Bf5 {[%clk 0:00:05.5]} 49... Bf7 {[%clk 0:00:10.4]} 50. Nh5
{[%clk 0:00:04]} 50... Nxa2 {[%clk 0:00:10]} 51. Rd7+ {[%clk 0:00:04.5]} 51...
Kf8 {[%clk 0:00:11.2]} 52. Rd8+ {[%clk 0:00:05.6]} 52... Ke7 {[%clk 0:00:12.2]}
53. Rd7+ {[%clk 0:00:07.1]} 53... Ke8 {[%clk 0:00:12.9]} 54. Nf6+ {[%clk
0:00:07.5]} 54... Kf8 {[%clk 0:00:14.2]} 55. Rxb7 {[%clk 0:00:07.3]} 55... Rf2
{[%clk 0:00:13.3]} 56. Nd7+ {[%clk 0:00:06.2]} 56... Kg8 {[%clk 0:00:13.8]} 57.
Be4 {[%clk 0:00:07]} 57... Nb4 {[%clk 0:00:13.6]} 58. Kg3 {[%clk 0:00:07.4]}
58... Re2 {[%clk 0:00:13.9]} 59. Bf3 {[%clk 0:00:07.9]} 59... Re3 {[%clk
0:00:14.8]} 60. Kf4 {[%clk 0:00:09.4]} 60... Rxb3 {[%clk 0:00:15.5]} 61. Ne5
{[%clk 0:00:10.7]} 61... Nd3+ {[%clk 0:00:16.4]} 62. Nxd3 {[%clk 0:00:10.2]}
62... Rxb7 {[%clk 0:00:17.5]} 63. Ne5 {[%clk 0:00:10.2]} 63... a4 {[%clk
0:00:17.1]} 64. Bxc6 {[%clk 0:00:11.3]} 64... a3 {[%clk 0:00:15.7]} 65. Bxb7
{[%clk 0:00:09.3]} 65... a2 {[%clk 0:00:16.8]} 66. Nxf7 {[%clk 0:00:08.4]} 66...
Kxf7 {[%clk 0:00:17.2]} 67. Bd5+ {[%clk 0:00:09.6]} 67... Ke7 {[%clk 0:00:17.9]}
68. Kg4 {[%clk 0:00:05.7]} 68... a1=Q {[%clk 0:00:17.8]} 69. Kf4 {[%clk
0:00:06.4]} 69... Qd4+ {[%clk 0:00:18.4]} 70. Kg3 {[%clk 0:00:07.5]} 70... Kf6
{[%clk 0:00:19.2]} 71. Kh2 {[%clk 0:00:08.1]} 71... Kg5 {[%clk 0:00:20.2]} 0-1

[Event "*** Titled Tuesday 3|2 Blitz"]
[Site "Chess.com"]
[Date "2015.12.01"]
[Round "4"]
[White "chessmaxusa"]
[Black "LADIESGET2KNOWME"]
[Result "1-0"]
[WhiteElo "2321"]
[BlackElo "2228"]
[TimeControl "180+2"]
[EndTime "11:52:36 PST"]
[Termination "chessmaxusa won by resignation"]

1. d4 {[%clk 0:03:01.9]} 1... Nf6 {[%clk 0:03:01]} 2. Nf3 {[%clk 0:03:03.8]}
2... g6 {[%clk 0:03:02.4]} 3. Bf4 {[%clk 0:03:05.1]} 3... Bg7 {[%clk 0:03:04]}
4. e3 {[%clk 0:03:06.5]} 4... O-O {[%clk 0:03:05.9]} 5. h3 {[%clk 0:03:07.9]}
5... d6 {[%clk 0:03:07.8]} 6. Be2 {[%clk 0:03:09.2]} 6... b6 {[%clk 0:03:09.7]}
7. O-O {[%clk 0:03:10.5]} 7... Bb7 {[%clk 0:03:11.6]} 8. c3 {[%clk 0:03:12.1]}
8... Nbd7 {[%clk 0:03:13.2]} 9. Nbd2 {[%clk 0:03:13.5]} 9... Ne4 {[%clk
0:03:14.8]} 10. a4 {[%clk 0:03:13.2]} 10... a6 {[%clk 0:03:15.6]} 11. Bh2 {[%clk
0:03:13.2]} 11... c5 {[%clk 0:03:16.4]} 12. Re1 {[%clk 0:03:11]} 12... Qc7
{[%clk 0:03:16.1]} 13. Bf1 {[%clk 0:03:12.3]} 13... Nxd2 {[%clk 0:03:13.3]} 14.
Qxd2 {[%clk 0:03:13]} 14... Nf6 {[%clk 0:03:14.5]} 15. Red1 {[%clk 0:03:13.2]}
15... Bc6 {[%clk 0:03:10.8]} 16. Ne1 {[%clk 0:03:01]} 16... Qb7 {[%clk 0:03:11]}
17. Nc2 {[%clk 0:02:59.1]} 17... Ne4 {[%clk 0:02:55.1]} 18. Qe2 {[%clk
0:02:56.4]} 18... Nf6 {[%clk 0:02:54.7]} 19. Qc4 {[%clk 0:02:51.9]} 19... b5
{[%clk 0:02:49.4]} 20. axb5 {[%clk 0:02:48.1]} 20... axb5 {[%clk 0:02:47.2]} 21.
Qb3 {[%clk 0:02:47.9]} 21... c4 {[%clk 0:02:34.7]} 22. Bxc4 {[%clk 0:02:20.9]}
22... bxc4 {[%clk 0:02:35.2]} 23. Qxb7 {[%clk 0:02:20.5]} 23... Bxb7 {[%clk
0:02:35.8]} 24. Na3 {[%clk 0:02:19.5]} 24... Ba6 {[%clk 0:02:23]} 25. f3 {[%clk
0:02:17.2]} 25... Rab8 {[%clk 0:02:18.6]} 26. Rd2 {[%clk 0:02:17.7]} 26... Nd5
{[%clk 0:02:13.3]} 27. Kf2 {[%clk 0:02:16.9]} 27... f5 {[%clk 0:02:11.5]} 28.
Re2 {[%clk 0:02:16.6]} 28... e5 {[%clk 0:02:09.2]} 29. dxe5 {[%clk 0:02:10.5]}
29... Bxe5 {[%clk 0:02:06.8]} 30. Bg1 {[%clk 0:02:06.6]} 30... f4 {[%clk
0:02:03.2]} 31. e4 {[%clk 0:02:05.9]} 31... Ne3 {[%clk 0:01:55.3]} 32. Ke1
{[%clk 0:02:04.3]} 32... Rb3 {[%clk 0:01:53.9]} 33. Nb1 {[%clk 0:01:49]} 33...
Bc8 {[%clk 0:01:46.9]} 34. Ra2 {[%clk 0:01:49.6]} 34... Be6 {[%clk 0:01:43.7]}
35. Bxe3 {[%clk 0:01:48.2]} 35... fxe3 {[%clk 0:01:44.2]} 36. Rxe3 {[%clk
0:01:49.5]} 36... Rfb8 {[%clk 0:01:41.9]} 37. Re2 {[%clk 0:01:50.3]} 37... Bf4
{[%clk 0:01:37.2]} 38. Kd1 {[%clk 0:01:50.5]} 38... Kf7 {[%clk 0:01:34.9]} 39.
Kc2 {[%clk 0:01:51.4]} 39... d5 {[%clk 0:01:35.3]} 40. Na3 {[%clk 0:01:40.6]}
40... dxe4 {[%clk 0:01:12.7]} 41. fxe4 {[%clk 0:01:41.2]} 41... Ke7 {[%clk
0:01:08.7]} 42. Rf2 {[%clk 0:01:35.3]} 42... Be5 {[%clk 0:01:05.1]} 43. Nb1
{[%clk 0:01:32.9]} 43... R3b7 {[%clk 0:01:02.1]} 44. Nd2 {[%clk 0:01:31.1]}
44... h5 {[%clk 0:01:00.7]} 45. Nf3 {[%clk 0:01:31.8]} 45... Bf6 {[%clk
0:00:58.3]} 46. Re2 {[%clk 0:01:26.2]} 46... h4 {[%clk 0:00:52.3]} 47. Kc1
{[%clk 0:01:22.2]} 47... Rb5 {[%clk 0:00:44.6]} 48. Ra4 {[%clk 0:01:21.2]} 48...
g5 {[%clk 0:00:40.1]} 49. e5 {[%clk 0:01:14.7]} 49... Bg7 {[%clk 0:00:41.1]} 50.
Nd4 {[%clk 0:01:16.1]} 50... R5b6 {[%clk 0:00:37.5]} 51. Nf3 {[%clk 0:01:10]}
51... g4 {[%clk 0:00:37.2]} 52. hxg4 {[%clk 0:01:09.5]} 52... Bxg4 {[%clk
0:00:38.9]} 53. Rxc4 {[%clk 0:01:09.3]} 53... Bh6+ {[%clk 0:00:31.5]} 54. Kd1
{[%clk 0:00:49.5]} 54... Bxf3 {[%clk 0:00:32.8]} 55. gxf3 {[%clk 0:00:50.5]}
55... Rxb2 {[%clk 0:00:19]} 56. Rxb2 {[%clk 0:00:44.7]} 56... Rxb2 {[%clk
0:00:20.9]} 57. Rxh4 {[%clk 0:00:46.2]} 57... Bg5 {[%clk 0:00:21.9]} 58. Rg4
{[%clk 0:00:43]} 58... Be3 {[%clk 0:00:21.7]} 59. Re4 {[%clk 0:00:43.2]} 59...
Bc5 {[%clk 0:00:19]} 60. Rc4 {[%clk 0:00:40.6]} 60... Be3 {[%clk 0:00:18.5]} 61.
Re4 {[%clk 0:00:41.5]} 61... Bb6 {[%clk 0:00:14.8]} 62. Re2 {[%clk 0:00:32.8]}
62... Rb5 {[%clk 0:00:09.5]} 63. Kc2 {[%clk 0:00:30.8]} 63... Ke6 {[%clk
0:00:11]} 64. f4 {[%clk 0:00:31.9]} 64... Rd5 {[%clk 0:00:09.6]} 65. Re4 {[%clk
0:00:30.2]} 65... Bc5 {[%clk 0:00:10.6]} 66. Kb3 {[%clk 0:00:30.2]} 66... Kf5
{[%clk 0:00:11.9]} 67. Re2 {[%clk 0:00:30.1]} 67... Kxf4 {[%clk 0:00:08]} 68.
Kc4 {[%clk 0:00:31.5]} 68... Rxe5 {[%clk 0:00:06.7]} 69. Rxe5 {[%clk 0:00:32.3]}
69... Kxe5 {[%clk 0:00:06.7]} 70. Kxc5 {[%clk 0:00:33.8]} 70... Ke6 {[%clk
0:00:08.6]} 71. Kc6 {[%clk 0:00:35.3]} 71... Ke7 {[%clk 0:00:09.5]} 72. Kc7
{[%clk 0:00:36.1]} 72... Ke6 {[%clk 0:00:06.8]} 73. c4 {[%clk 0:00:37.5]} 73...
Ke7 {[%clk 0:00:07]} 74. c5 {[%clk 0:00:38.7]} 74... Ke8 {[%clk 0:00:07.9]} 75.
c6 {[%clk 0:00:39.5]} 75... Ke7 {[%clk 0:00:08.7]} 76. Kb8 {[%clk 0:00:40.8]}
1-0

[Event "*** Titled Tuesday 3|2 Blitz"]
[Site "Chess.com"]
[Date "2015.12.01"]
[Round "4"]
[White "BellJackson95"]
[Black "Thomaslegend"]
[Result "1-0"]
[WhiteElo "2153"]
[BlackElo "2129"]
[TimeControl "180+2"]
[EndTime "11:52:42 PST"]
[Termination "BellJackson95 won by resignation"]

1. e4 {[%clk 0:03:01.9]} 1... e5 {[%clk 0:03:00.6]} 2. f4 {[%clk 0:03:01.9]}
2... exf4 {[%clk 0:03:00.9]} 3. Nf3 {[%clk 0:03:02.8]} 3... d5 {[%clk
0:03:01.7]} 4. exd5 {[%clk 0:03:02.1]} 4... Nf6 {[%clk 0:03:02.4]} 5. d4 {[%clk
0:03:03.2]} 5... Bd6 {[%clk 0:02:58.3]} 6. Bb5+ {[%clk 0:03:01.7]} 6... Bd7
{[%clk 0:02:50.9]} 7. Bc4 {[%clk 0:02:55.1]} 7... Qe7+ {[%clk 0:02:41.1]} 8. Qe2
{[%clk 0:02:44.5]} 8... Qxe2+ {[%clk 0:02:42]} 9. Kxe2 {[%clk 0:02:45.8]} 9...
O-O {[%clk 0:02:34.7]} 10. Re1 {[%clk 0:02:42.6]} 10... Re8+ {[%clk 0:02:26.1]}
11. Kf1 {[%clk 0:02:43.7]} 11... Rxe1+ {[%clk 0:02:26.8]} 12. Kxe1 {[%clk
0:02:44.7]} 12... Bf5 {[%clk 0:02:15.8]} 13. Bb3 {[%clk 0:02:44.2]} 13... Nbd7
{[%clk 0:02:08.8]} 14. c4 {[%clk 0:02:43.8]} 14... Re8+ {[%clk 0:02:07.7]} 15.
Kf1 {[%clk 0:02:42.3]} 15... c5 {[%clk 0:01:31.1]} 16. Nc3 {[%clk 0:02:31.4]}
16... a6 {[%clk 0:01:07]} 17. Bd2 {[%clk 0:02:24.6]} 17... Bd3+ {[%clk
0:01:02.7]} 18. Kg1 {[%clk 0:02:21.4]} 18... Nb6 {[%clk 0:01:03.6]} 19. dxc5
{[%clk 0:02:04.2]} 19... Bxc5+ {[%clk 0:01:04.4]} 20. Kh1 {[%clk 0:02:03.9]}
20... Bxc4 {[%clk 0:01:03]} 21. Bxc4 {[%clk 0:01:54.3]} 21... Nxc4 {[%clk
0:01:04.9]} 22. Bxf4 {[%clk 0:01:53.7]} 22... Ng4 {[%clk 0:00:57.4]} 23. h3
{[%clk 0:01:50.7]} 23... Nf2+ {[%clk 0:00:55.5]} 24. Kh2 {[%clk 0:01:50.8]}
24... Nd3 {[%clk 0:00:42.3]} 25. Na4 {[%clk 0:01:12.9]} 25... Nxf4 {[%clk
0:00:32.9]} 26. Nxc5 {[%clk 0:01:11.3]} 26... Re2 {[%clk 0:00:33.9]} 27. Ne1
{[%clk 0:00:49.3]} 27... Nd6 {[%clk 0:00:28.3]} 28. b4 {[%clk 0:00:42.6]} 28...
g5 {[%clk 0:00:24.9]} 29. Ncd3 {[%clk 0:00:39.2]} 29... Nxd3 {[%clk 0:00:18.3]}
30. Nxd3 {[%clk 0:00:38.7]} 30... Rd2 {[%clk 0:00:19.9]} 31. Nc5 {[%clk
0:00:36]} 31... Rxd5 {[%clk 0:00:20]} 32. Re1 {[%clk 0:00:35.2]} 32... Rd2
{[%clk 0:00:13]} 33. a3 {[%clk 0:00:32.6]} 33... Ra2 {[%clk 0:00:11.1]} 34. Re3
{[%clk 0:00:30.3]} 34... Nf5 {[%clk 0:00:06.8]} 35. Re5 {[%clk 0:00:25.5]} 35...
Rf2 {[%clk 0:00:02.3]} 36. Ne4 {[%clk 0:00:19.2]} 36... Rf1 {[%clk 0:00:02.7]}
37. Nxg5 {[%clk 0:00:14]} 37... Kg7 {[%clk 0:00:03.7]} 38. Nf3 {[%clk
0:00:14.8]} 38... Kf6 {[%clk 0:00:04.4]} 39. Rc5 {[%clk 0:00:14.9]} 39... Ra1
{[%clk 0:00:05.2]} 40. Rc7 {[%clk 0:00:15.8]} 40... Rxa3 {[%clk 0:00:05.8]} 41.
Rxb7 {[%clk 0:00:17]} 41... Ra2 {[%clk 0:00:07.1]} 42. Rb6+ {[%clk 0:00:18.4]}
42... Kg7 {[%clk 0:00:07.7]} 43. h4 {[%clk 0:00:15.8]} 43... Ne3 {[%clk
0:00:08.7]} 44. Kh3 {[%clk 0:00:11.6]} 44... Nxg2 {[%clk 0:00:06.8]} 45. Ng5
{[%clk 0:00:11]} 45... Nf4+ {[%clk 0:00:06.2]} 46. Kg4 {[%clk 0:00:12.9]} 46...
Ne6 {[%clk 0:00:03.8]} 47. Rb7 {[%clk 0:00:14.2]} 47... Nxg5 {[%clk 0:00:04.8]}
48. Kxg5 {[%clk 0:00:14.5]} 48... Ra4 {[%clk 0:00:06.5]} 49. h5 {[%clk
0:00:15.7]} 49... Ra1 {[%clk 0:00:05.9]} 50. h6+ {[%clk 0:00:17.6]} 50... Kf8
{[%clk 0:00:06.7]} 51. Rb8+ {[%clk 0:00:18.5]} 51... Ke7 {[%clk 0:00:07.7]} 52.
Rh8 {[%clk 0:00:20]} 52... Rg1+ {[%clk 0:00:08.4]} 53. Kf5 {[%clk 0:00:20.9]}
53... Rf1+ {[%clk 0:00:09.7]} 54. Ke5 {[%clk 0:00:20.9]} 54... f6+ {[%clk
0:00:08.6]} 55. Kd5 {[%clk 0:00:20.7]} 55... Rd1+ {[%clk 0:00:07]} 56. Kc5
{[%clk 0:00:20.1]} 56... Rh1 {[%clk 0:00:04.9]} 57. Rxh7+ {[%clk 0:00:20.7]}
57... Ke6 {[%clk 0:00:06.4]} 58. Kb6 {[%clk 0:00:20.5]} 58... Rh4 {[%clk
0:00:05.7]} 59. Ka5 {[%clk 0:00:19.9]} 59... Kf5 {[%clk 0:00:04.7]} 60. Rh8
{[%clk 0:00:20.9]} 60... Kg6 {[%clk 0:00:05.6]} 61. h7 {[%clk 0:00:17.3]} 61...
Kg7 {[%clk 0:00:04.3]} 62. Ra8 {[%clk 0:00:15.4]} 62... Kxh7 {[%clk 0:00:03.2]}
63. Rxa6 {[%clk 0:00:16.9]} 63... f5 {[%clk 0:00:02.9]} 64. Re6 {[%clk
0:00:14.4]} 64... f4 {[%clk 0:00:03.1]} 65. b5 {[%clk 0:00:15.6]} 65... f3
{[%clk 0:00:03.3]} 66. Rf6 {[%clk 0:00:15.5]} 66... Rh3 {[%clk 0:00:02.2]} 67.
b6 {[%clk 0:00:16.8]} 67... f2 {[%clk 0:00:03.2]} 68. Rxf2 {[%clk 0:00:16.1]}
68... Ra3+ {[%clk 0:00:04.4]} 69. Kb5 {[%clk 0:00:15.9]} 69... Rb3+ {[%clk
0:00:05.3]} 70. Ka6 {[%clk 0:00:16.8]} 70... Kg6 {[%clk 0:00:06.7]} 71. b7
{[%clk 0:00:14.7]} 71... Ra3+ {[%clk 0:00:08]} 72. Kb6 {[%clk 0:00:15.7]} 72...
Rb3+ {[%clk 0:00:09.6]} 73. Kc7 {[%clk 0:00:16.6]} 73... Rc3+ {[%clk 0:00:11.2]}
74. Kb8 {[%clk 0:00:17.3]} 74... Rb3 {[%clk 0:00:12.4]} 75. Rf4 {[%clk
0:00:14.7]} 75... Kg5 {[%clk 0:00:12.9]} 76. Rc4 {[%clk 0:00:14.2]} 76... Kf5
{[%clk 0:00:14]} 77. Kc7 {[%clk 0:00:14.6]} 77... Ke5 {[%clk 0:00:14.8]} 78.
b8=Q {[%clk 0:00:15.7]} 78... Rxb8 {[%clk 0:00:15.3]} 79. Kxb8 {[%clk
0:00:17.6]} 1-0

[Event "*** Titled Tuesday 3|2 Blitz"]
[Site "Chess.com"]
[Date "2015.12.01"]
[Round "5"]
[White "tigra"]
[Black "MITerryble"]
[Result "0-1"]
[WhiteElo "2057"]
[BlackElo "2601"]
[TimeControl "180+2"]
[EndTime "11:58:15 PST"]
[Termination "MITerryble won by resignation"]

1. e4 {[%clk 0:03:01.9]} 1... e6 {[%clk 0:03:00.6]} 2. d4 {[%clk 0:03:02.6]}
2... d5 {[%clk 0:03:01.6]} 3. Nc3 {[%clk 0:03:04.2]} 3... Nf6 {[%clk 0:03:02.8]}
4. Bg5 {[%clk 0:03:03.2]} 4... Bb4 {[%clk 0:02:58.5]} 5. e5 {[%clk 0:03:03.9]}
5... h6 {[%clk 0:02:59.6]} 6. Bc1 {[%clk 0:03:04]} 6... Ne4 {[%clk 0:02:59.7]}
7. Qg4 {[%clk 0:03:04.5]} 7... g6 {[%clk 0:03:01]} 8. a3 {[%clk 0:03:03.8]} 8...
Bxc3+ {[%clk 0:02:51.4]} 9. bxc3 {[%clk 0:03:04.7]} 9... c5 {[%clk 0:02:53.1]}
10. Bd3 {[%clk 0:03:04.8]} 10... Nxc3 {[%clk 0:02:47.5]} 11. dxc5 {[%clk
0:03:05.7]} 11... Qa5 {[%clk 0:02:45.4]} 12. Nf3 {[%clk 0:02:59.4]} 12... Ne4+
{[%clk 0:02:43.7]} 13. Ke2 {[%clk 0:02:57.1]} 13... Qxc5 {[%clk 0:02:40]} 14.
Be3 {[%clk 0:02:55.8]} 14... Qc7 {[%clk 0:02:30.5]} 15. c4 {[%clk 0:02:55]}
15... Nc6 {[%clk 0:02:26.1]} 16. Rac1 {[%clk 0:02:51.9]} 16... Qa5 {[%clk
0:02:16.9]} 17. cxd5 {[%clk 0:02:50.7]} 17... exd5 {[%clk 0:02:17.6]} 18. Qf4
{[%clk 0:02:49.7]} 18... g5 {[%clk 0:02:17.6]} 19. Bd2 {[%clk 0:02:43.3]} 19...
gxf4 {[%clk 0:02:10.7]} 20. Bxa5 {[%clk 0:02:44]} 20... Nxa5 {[%clk 0:02:12.6]}
21. Rc7 {[%clk 0:02:44.5]} 21... Nc6 {[%clk 0:01:59.3]} 22. Bb5 {[%clk
0:02:41.7]} 22... Nc3+ {[%clk 0:01:59.4]} 0-1

[Event "*** Titled Tuesday 3|2 Blitz"]
[Site "Chess.com"]
[Date "2015.12.01"]
[Round "5"]
[White "AdrianaNikolova"]
[Black "Makalexa"]
[Result "0-1"]
[WhiteElo "2226"]
[BlackElo "2067"]
[TimeControl "180+2"]
[EndTime "11:58:59 PST"]
[Termination "Makalexa won by resignation"]

1. e4 {[%clk 0:03:01.9]} 1... e5 {[%clk 0:02:59.4]} 2. Nf3 {[%clk 0:03:02.3]}
2... Nc6 {[%clk 0:03:00.4]} 3. Nc3 {[%clk 0:03:03.2]} 3... Nf6 {[%clk 0:03:00]}
4. d4 {[%clk 0:03:03.6]} 4... Bb4 {[%clk 0:02:58.9]} 5. Nxe5 {[%clk 0:03:01.5]}
5... Bxc3+ {[%clk 0:02:55.3]} 6. bxc3 {[%clk 0:02:59.5]} 6... Qe7 {[%clk
0:02:57.2]} 7. Nxc6 {[%clk 0:02:56.8]} 7... Qxe4+ {[%clk 0:02:57]} 8. Qe2 {[%clk
0:02:54.3]} 8... dxc6 {[%clk 0:02:54.4]} 9. Ba3 {[%clk 0:02:48.2]} 9... Bf5
{[%clk 0:02:49.6]} 10. O-O-O {[%clk 0:02:35.2]} 10... O-O-O {[%clk 0:02:44.1]}
11. Be7 {[%clk 0:01:56.5]} 11... Rde8 {[%clk 0:02:41]} 12. Bxf6 {[%clk
0:01:44.9]} 12... Qxe2 {[%clk 0:02:37.6]} 13. Bxe2 {[%clk 0:01:45.6]} 13... Rxe2
{[%clk 0:02:26.6]} 14. Bxg7 {[%clk 0:01:38.8]} 14... Rg8 {[%clk 0:02:23.7]} 15.
Be5 {[%clk 0:01:23.3]} 15... Rxc2+ {[%clk 0:02:20.8]} 16. Kb1 {[%clk 0:01:24.3]}
16... Rxf2+ {[%clk 0:02:14.1]} 17. Ka1 {[%clk 0:01:23.5]} 17... Rgxg2 {[%clk
0:02:13.9]} 0-1

[Event "*** Titled Tuesday 3|2 Blitz"]
[Site "Chess.com"]
[Date "2015.12.01"]
[Round "5"]
[White "ArnaudovP"]
[Black "BakaPG"]
[Result "0-1"]
[WhiteElo "2322"]
[BlackElo "2482"]
[TimeControl "180+2"]
[EndTime "12:01:06 PST"]
[Termination "BakaPG won by resignation"]

1. d4 {[%clk 0:02:20.6]} 1... c5 {[%clk 0:02:55.6]} 2. d5 {[%clk 0:02:21.2]}
2... e5 {[%clk 0:02:55.2]} 3. c4 {[%clk 0:02:22.2]} 3... d6 {[%clk 0:02:55.5]}
4. Nc3 {[%clk 0:02:23.7]} 4... Be7 {[%clk 0:02:56.3]} 5. e4 {[%clk 0:02:14.5]}
5... Bg5 {[%clk 0:02:55.5]} 6. Nf3 {[%clk 0:02:14.3]} 6... Bxc1 {[%clk
0:02:51.7]} 7. Rxc1 {[%clk 0:02:14.8]} 7... Ne7 {[%clk 0:02:52.6]} 8. Be2 {[%clk
0:02:13.6]} 8... O-O {[%clk 0:02:51.8]} 9. O-O {[%clk 0:02:15]} 9... Ng6 {[%clk
0:02:50.6]} 10. Re1 {[%clk 0:02:14.2]} 10... a6 {[%clk 0:02:48]} 11. g3 {[%clk
0:02:13.5]} 11... Nd7 {[%clk 0:02:47]} 12. Nd2 {[%clk 0:02:10.9]} 12... Nf6
{[%clk 0:02:41.1]} 13. Nf1 {[%clk 0:02:09.1]} 13... Bd7 {[%clk 0:02:39.9]} 14.
a3 {[%clk 0:01:55.3]} 14... b5 {[%clk 0:02:37.4]} 15. b4 {[%clk 0:01:49.2]}
15... cxb4 {[%clk 0:02:32]} 16. axb4 {[%clk 0:01:50.2]} 16... bxc4 {[%clk
0:02:31.6]} 17. Bxc4 {[%clk 0:01:51.3]} 17... Qb6 {[%clk 0:02:30.2]} 18. Qb3
{[%clk 0:01:50.7]} 18... Rfb8 {[%clk 0:02:20.7]} 19. Rb1 {[%clk 0:01:49.5]}
19... h5 {[%clk 0:02:11.6]} 20. Ne3 {[%clk 0:01:33.1]} 20... h4 {[%clk
0:02:08.1]} 21. Bf1 {[%clk 0:01:27.2]} 21... hxg3 {[%clk 0:02:05.8]} 22. hxg3
{[%clk 0:01:28.2]} 22... Bb5 {[%clk 0:01:33.1]} 23. Bxb5 {[%clk 0:01:23.1]}
23... axb5 {[%clk 0:01:32.5]} 24. Ra1 {[%clk 0:01:24.2]} 24... Ne7 {[%clk
0:01:24.5]} 25. Qb2 {[%clk 0:01:23.4]} 25... g6 {[%clk 0:01:13.8]} 26. Qe2
{[%clk 0:01:23.4]} 26... Rxa1 {[%clk 0:01:11]} 27. Rxa1 {[%clk 0:01:23.4]} 27...
Qd4 {[%clk 0:01:11.3]} 28. Nxb5 {[%clk 0:01:18.4]} 28... Qxa1+ {[%clk
0:01:10.2]} 29. Kg2 {[%clk 0:01:18.2]} 29... Qa6 {[%clk 0:01:09.6]} 0-1

[Event "*** Titled Tuesday 3|2 Blitz"]
[Site "Chess.com"]
[Date "2015.12.01"]
[Round "5"]
[White "Aygehovit1992"]
[Black "AvitalBor"]
[Result "1-0"]
[WhiteElo "2444"]
[BlackElo "2335"]
[TimeControl "180+2"]
[EndTime "12:01:08 PST"]
[Termination "Aygehovit1992 won on time"]

1. e4 {[%clk 0:03:01.9]} 1... c5 {[%clk 0:02:59]} 2. Nf3 {[%clk 0:03:02.7]} 2...
d6 {[%clk 0:03:00.9]} 3. d4 {[%clk 0:03:01.9]} 3... cxd4 {[%clk 0:03:02.8]} 4.
Nxd4 {[%clk 0:03:02.7]} 4... a6 {[%clk 0:03:03.9]} 5. Nc3 {[%clk 0:03:04.1]}
5... Nf6 {[%clk 0:03:04.8]} 6. h3 {[%clk 0:03:04.1]} 6... e5 {[%clk 0:03:04.5]}
7. Nb3 {[%clk 0:03:03.3]} 7... Be6 {[%clk 0:03:03.8]} 8. f4 {[%clk 0:03:03.7]}
8... Be7 {[%clk 0:03:04.2]} 9. Qe2 {[%clk 0:02:57]} 9... b5 {[%clk 0:03:02.4]}
10. Be3 {[%clk 0:02:55.2]} 10... Nc6 {[%clk 0:02:59.2]} 11. O-O-O {[%clk
0:02:53.2]} 11... b4 {[%clk 0:02:57.8]} 12. Nd5 {[%clk 0:02:54.1]} 12... Bxd5
{[%clk 0:02:38.8]} 13. exd5 {[%clk 0:02:54.8]} 13... Na5 {[%clk 0:02:40.7]} 14.
fxe5 {[%clk 0:02:55.4]} 14... Nxb3+ {[%clk 0:02:40.6]} 15. axb3 {[%clk
0:02:56.2]} 15... dxe5 {[%clk 0:02:34.4]} 16. d6 {[%clk 0:02:57.1]} 16... Qa5
{[%clk 0:02:09.9]} 17. dxe7 {[%clk 0:02:54.5]} 17... Qa1+ {[%clk 0:02:08.8]} 18.
Kd2 {[%clk 0:02:55.6]} 18... Qxb2 {[%clk 0:02:10.7]} 19. Ke1 {[%clk 0:02:51.1]}
19... Ne4 {[%clk 0:02:04.2]} 20. Qd3 {[%clk 0:02:34.4]} 20... Qc3+ {[%clk
0:01:58.2]} 21. Qxc3 {[%clk 0:02:35.6]} 21... Nxc3 {[%clk 0:02:00.1]} 22. Rd8+
{[%clk 0:02:29.2]} 22... Kxe7 {[%clk 0:01:58.5]} 23. Rxh8 {[%clk 0:02:29.7]}
23... Rxh8 {[%clk 0:01:59.1]} 24. Bc5+ {[%clk 0:02:30.4]} 24... Kf6 {[%clk
0:02:00.2]} 25. Bxb4 {[%clk 0:02:31.9]} 25... Nd5 {[%clk 0:02:01.1]} 26. Bd2
{[%clk 0:02:33.1]} 26... Rc8 {[%clk 0:01:54.2]} 27. Bd3 {[%clk 0:02:33.3]} 27...
g6 {[%clk 0:01:54.2]} 28. Rf1+ {[%clk 0:02:34]} 28... Ke7 {[%clk 0:01:55.7]} 29.
c4 {[%clk 0:02:33.4]} 29... Nc7 {[%clk 0:01:52.1]} 30. Bg5+ {[%clk 0:02:32.5]}
30... Ke6 {[%clk 0:01:51.7]} 31. Rf6+ {[%clk 0:02:32.1]} 1-0